[Event "MCCT Oslo Esports Cup 2022"]
[Site "Oslo"]
[Date "2022.04.20"]
[Round "5.3"]
[White "Le, Quang Liem"]
[Black "Duda, Jan-Krzysztof"]
[Result "1/2-1/2"]
[ECO "D85"]
[WhiteElo "2709"]
[BlackElo "2750"]
[Annotator "TA"]
[PlyCount "136"]
[EventDate "2022.04.14"]
[EventType "tourn"]
[EventCountry "NOR"]
[SourceTitle "playchess.com"]
[Source "ChessBase"]
[SourceQuality "1"]
[TimeControl "900+10"]

{[%evp 14,136,21,21,47,45,53,48,61,64,104,93,98,91,77,46,120,122,118,122,109,100,116,123,149,109,122,82,154,131,254,250,248,249,304,301,299,264,263,259,278,229,240,236,299,293,297,286,334,273,375,372,374,372,378,370,360,252,252,249,231,179,180,168,195,195,224,221,207,143,143,136,359,179,359,359,359,359,359,359,354,45,45,45,45,8,8,8,8,0,8,8,8,8,8,8,8,8,8,8,8,8,8,8,8,8,8,8,15,15,15,8,15,15,15,8,15,15,15,0,8,8,8,8,8]} 1. d4 {[%emt 0:00:00]} Nf6 {[%emt 0:00:00]} 2. c4 {[%emt 0:00:02]} g6 {[%emt 0:00:01]} 3. Nc3 {[%emt 0:00:01]} d5 {[%emt 0:00:01]} 4. cxd5 {[%emt 0:00:00]} Nxd5 {[%emt 0:00:01]} 5. Bd2 {[%emt 0:00:00]} Bg7 {[%emt 0:00:03]} 6. e4 {[%emt 0:00:02]} Nb6 {[%emt 0:00:01]} 7. Be3 {[%emt 0:00:06]} O-O {[%emt 0:00:01]} 8. a4 {[%emt 0:00:24]} Be6 {[%emt 0:02:00]} 9. d5 {[%emt 0:00:25]} Bc8 {[%emt 0:00:12]} 10. a5 {[%emt 0:00:46]} N6d7 {[%emt 0:00:01]} 11. Nf3 {[%emt 0:00:01]} Ne5 {[%emt 0:00:57]} 12. Nxe5 {[%emt 0:00:16]} Bxe5 {[%emt 0:00:00]} 13. f4 {[%emt 0:00:01]} Bg7 {[%emt 0:00:07]} 14. Bc4 {[%emt 0:00:20]} c6 {[%emt 0:00:13] [#]} (14... e5 $14) 15. e5 $1 $16 {[%emt 0:00:44]} cxd5 {[%emt 0:05:19]} 16. Bxd5 {[%emt 0:00:03]} (16. Qxd5 Nc6 $14) 16... Nc6 {[%emt 0:01:43]} 17. a6 {[%emt 0:00:36]} Rb8 {[%emt 0:00:02]} 18. O-O {[%emt 0:00:35]} Bd7 {[%emt 0:00:27]} 19. Qf3 {[%emt 0:00:32]} Qe8 {[%emt 0:02:28]} 20. Rfd1 {[%emt 0:03:08]} bxa6 {[%emt 0:00:37]} 21. Rxa6 {[%emt 0:00:00]} Nxe5 {[%emt 0:02:06]} (21... Rc8 $16 22. Rd2 e6) 22. fxe5 $18 {[%emt 0:00:05]} Qc8 {[%emt 0:00:01]} 23. Rda1 {[%emt 0:03:10]} (23. Rxa7 $6 Bg4 24. Qe4 Bxd1) (23. Bxa7 Qxa6 24. Bxb8 Qb6+ 25. Kh1 Qxb8 $17) 23... Rxb2 {[%emt 0:00:25]} 24. Bd4 {[%emt 0:00:39]} (24. Bxa7 Bxe5 25. Bc6 Bxc6 26. Rxc6 Qa8 $16) (24. Rxa7 Qxc3 25. Rxd7 Rb3 26. Bxb3 Qxa1+ 27. Rd1 Qxe5 $18) 24... e6 {[%emt 0:01:14]} 25. Bc6 {[%emt 0:00:03]} Bxc6 {[%emt 0:00:10]} 26. Rxc6 {[%emt 0:00:35]} (26. Qxc6 $6 Qxc6 27. Rxc6 Rd8 $18) 26... Qb8 {[%emt 0:00:10]} 27. Ne4 {[%emt 0:00:45]} (27. Rxa7 Bxe5 28. Rd7 Bxd4+ 29. Rxd4 Rd8 30. Rxd8+ Qxd8 $16) 27... Rb4 {[%emt 0:01:01]} 28. Rd1 {[%emt 0:00:58]} ({Wrong is} 28. Rxa7 $2 Rxd4 29. Ra1 Bxe5 $19) ({Don't blunder} 28. Bxa7 $2 Rb1+ 29. Rxb1 Qxb1+ 30. Qf1 Qxe4 $19) 28... Rd8 {[%emt 0:00:17]} 29. Nd6 {[%emt 0:00:20]} Rf8 {[%emt 0:00:01]} 30. h3 {[%emt 0:00:43]} a5 {[%emt 0:00:08]} 31. Bc3 {[%emt 0:00:49]} Rb1 {[%emt 0:00:07]} 32. Rxb1 {[%emt 0:00:30]} Qxb1+ {[%emt 0:00:00]} 33. Kh2 {[%emt 0:00:02]} Qb8 {[%emt 0:00:26]} 34. Qe4 {[%emt 0:00:04]} Qa7 {[%emt 0:00:07]} 35. Qd4 {[%emt 0:00:33]} Qxd4 {[%emt 0:00:17]} 36. Bxd4 {[%emt 0:00:00]} Ra8 {[%emt 0:00:01]} 37. Rc8+ {[%emt 0:01:34]} Rxc8 {[%emt 0:00:02]} 38. Nxc8 {[%emt 0:00:00]} a4 {[%emt 0:00:17]} 39. Kg3 {[%emt 0:00:11]} h5 {[%emt 0:00:10]} 40. Nd6 {[%emt 0:00:15]} Bf8 {[%emt 0:00:10]} 41. Nb5 {[%emt 0:00:25]} a3 {[%emt 0:00:15]} 42. Kf3 {[%emt 0:00:08]} g5 $2 {[%emt 0:00:06]} (42... Kg7 $16 43. Ke2 Kh6) 43. Ke4 {[%emt 0:00:13]} (43. g4 $142) 43... Kg7 $2 {[%emt 0:00:05] [#]} (43... h4 {was called for.} 44. Kd3 Kg7) 44. g4 $1 $18 {[%emt 0:00:14]} hxg4 {[%emt 0:00:03]} 45. hxg4 {[%emt 0:00:00]} Be7 {[%emt 0:00:34]} 46. Ba1 {[%emt 0:00:21]} Kg6 {[%emt 0:00:09]} 47. Kd3 $2 {[%emt 0:00:52]} (47. Nd4 $18) 47... a2 $1 $14 {[%emt 0:00:09]} 48. Nc3 {[%emt 0:00:22]} f5 {[%emt 0:00:12]} 49. exf6 {[%emt 0:00:02]} Bxf6 {[%emt 0:00:01]} 50. Kc2 {[%emt 0:00:17]} Bd4 {[%emt 0:00:02]} 51. Kd3 {[%emt 0:00:23]} Be5 {[%emt 0:00:10]} 52. Bb2 {[%emt 0:00:05]} Kf7 {[%emt 0:00:17]} 53. Kc4 {[%emt 0:00:27]} Ke7 {[%emt 0:00:10]} 54. Kb3 {[%emt 0:00:19]} Kd6 {[%emt 0:00:05]} 55. Ba3+ {[%emt 0:00:20]} Kc6 {[%emt 0:00:06]} 56. Nxa2 {[%emt 0:00:01]} Kd5 $1 {[%emt 0:00:04]} 57. Bc1 {[%emt 0:00:32]} Ke4 {[%emt 0:00:06]} 58. Bxg5 {[%emt 0:00:01]} Kf3 {[%emt 0:00:01]} 59. Be7 {[%emt 0:00:03]} Kxg4 {[%emt 0:00:01]} 60. Kc4 {[%emt 0:00:01]} Kf5 {[%emt 0:00:01]} 61. Nb4 {[%emt 0:00:01]} Bf6 {[%emt 0:00:01]} 62. Bc5 {[%emt 0:00:01]} Be5 {[%emt 0:00:01]} 63. Nd3 {[%emt 0:00:01]} Bf4 {[%emt 0:00:01]} 64. Bd4 {[%emt 0:00:03]} Ke4 {[%emt 0:00:03]} 65. Nc5+ {[%emt 0:00:02]} Kf5 {[%emt 0:00:01]} 66. Nd3 {[%emt 0:00:01]} Ke4 {[%emt 0:00:00]} 67. Nxf4 {[%emt 0:00:03]} e5 {[%emt 0:00:04]} 68. Bxe5 {[%emt 0:00:01]} Kxe5 {[%emt 0:00:00]} 1/2-1/2

[Event "MCCT Oslo Esports Cup 2022"]
[Site "Oslo"]
[Date "2022.04.20"]
[Round "5.3"]
[White "Praggnanandhaa R"]
[Black "Hansen, Eric"]
[Result "1-0"]
[ECO "D90"]
[WhiteElo "2624"]
[BlackElo "2606"]
[Annotator "TA"]
[PlyCount "71"]
[EventDate "2022.04.14"]
[EventType "tourn"]
[EventCountry "NOR"]
[SourceTitle "playchess.com"]
[Source "ChessBase"]
[SourceQuality "1"]
[TimeControl "900+10"]

{[%evp 14,71,33,34,36,15,52,18,24,18,34,10,21,10,18,7,11,13,17,-17,11,10,36,12,24,18,35,32,34,23,39,9,72,27,96,69,156,118,127,111,135,133,384,376,391,384,381,383,719,744,698,726,679,737,725,718,1069,1050,1021,840]} 1. d4 {[%emt 0:00:00]} Nf6 {[%emt 0:00:00]} 2. c4 {[%emt 0:00:02]} g6 {[%emt 0:00:01]} 3. Nc3 {[%emt 0:00:02]} d5 {[%emt 0:00:00]} 4. cxd5 {[%emt 0:00:02]} Nxd5 {[%emt 0:00:00]} 5. e4 {[%emt 0:00:00]} Nxc3 {[%emt 0:00:02]} 6. bxc3 {[%emt 0:00:00]} Bg7 {[%emt 0:00:00]} 7. Qa4+ {[%emt 0:00:01] 7.Nf3 is the modern continuation.} c6 {[%emt 0:01:20]} 8. Nf3 {[%emt 0:00:03]} O-O {[%emt 0:00:01][%cal Oc6c5] D90: Grünfeld: 4 Nf3 Bg7 sidelines.} 9. Be2 {[%emt 0:00:01]} b5 {[%emt 0:00:12]} 10. Qa3 {[%emt 0:01:29]} Nd7 {[%emt 0:00:08] The position is equal.} 11. O-O {[%emt 0:00:30]} Re8 {[%emt 0:00:10]} 12. Bg5 {[%emt 0:00:34]} Nb6 {[%emt 0:00:20]} 13. Rad1 {[%emt 0:02:25] [#]} Qd6 $146 {[%emt 0:00:19]} ({Predecessor:} 13... a6 14. Nd2 Be6 15. Nb3 Bc4 16. Rfe1 Bxe2 17. Rxe2 Nc4 18. Qc5 Qd6 19. a4 h6 {½-½ (66) Hofmann,T (2262)-Belke,F (2300) Austria 2018}) 14. Qc1 {[%emt 0:00:27]} Be6 {[%emt 0:00:03]} 15. Bf4 {[%emt 0:00:23]} Qd8 {[%emt 0:00:02]} 16. Ne5 {[%emt 0:00:37]} Qc8 {[%emt 0:00:24]} (16... Bxe5 $5 17. dxe5 Qc8 $11) 17. Qc2 {[%emt 0:00:52]} f6 {[%emt 0:00:28]} 18. Nd3 {[%emt 0:00:06]} Bf7 {[%emt 0:00:18]} 19. e5 {[%emt 0:00:47]} Na4 {[%emt 0:00:57]} 20. Rfe1 {[%emt 0:01:38]} a5 {[%emt 0:00:04]} 21. Bg3 {[%emt 0:00:19]} Qe6 {[%emt 0:00:30]} 22. Rd2 {[%emt 0:01:49]} g5 {[%emt 0:00:19]} (22... Qxa2 $11 {remains equal.} 23. Qxa2 Bxa2 24. Rxa2 Nxc3) 23. Bf1 {[%emt 0:00:51] Black must now prevent exf6.} Qd5 {[%emt 0:01:47]} (23... Qc4 $11 {keeps the balance.}) 24. h4 {[%emt 0:00:12]} h6 {[%emt 0:00:09]} ({Better is} 24... Bg6 $14) 25. hxg5 {[%emt 0:00:26]} hxg5 {[%emt 0:00:03]} 26. Qc1 {[%emt 0:00:52]} Bg6 {[%emt 0:00:19]} 27. f4 {[%emt 0:00:23] Rf2 is the strong threat.} Bh6 $2 {[%emt 0:00:16][%mdl 8192] [#] This move loses the game for Black.} (27... g4 $16) 28. fxg5 $1 $18 {[%emt 0:00:21]} fxg5 {[%emt 0:00:52]} 29. e6 {[%emt 0:00:36]} Rf8 {[%emt 0:02:17]} 30. Ne5 {[%emt 0:00:12]} Bf5 {[%emt 0:00:35]} (30... Qxe6 31. Nxg6 Qxg6) 31. Nf7 {[%emt 0:00:45] White is clearly winning.} Rxf7 {[%emt 0:01:04]} 32. c4 {[%emt 0:01:01]} Qxe6 {[%emt 0:01:41]} 33. Rxe6 {[%emt 0:00:03]} Bxe6 {[%emt 0:00:01]} 34. cxb5 {[%emt 0:00:28]} g4 {[%emt 0:00:02] [#]} 35. Qxc6 $1 {[%emt 0:00:04]} Be3+ {[%emt 0:01:15]} (35... Bxd2 36. Qxe6) 36. Bf2 {[%emt 0:00:36] Weighted Error Value: White=0.11 (very precise) /Black=0.30} 1-0

[Event "MCCT Oslo Esports Cup 2022"]
[Site "Oslo"]
[Date "2022.04.20"]
[Round "5.4"]
[White "Carlsen, Magnus"]
[Black "Van Foreest, Jorden"]
[Result "1/2-1/2"]
[ECO "D02"]
[WhiteElo "2864"]
[BlackElo "2714"]
[Annotator "TA"]
[PlyCount "134"]
[EventDate "2022.04.14"]
[EventType "tourn"]
[EventCountry "NOR"]
[SourceTitle "playchess.com"]
[Source "ChessBase"]
[SourceQuality "1"]
[TimeControl "900+10"]

{[%evp 11,134,31,21,25,19,37,43,47,51,46,39,31,52,50,43,69,41,60,58,61,43,23,22,18,66,27,12,14,14,13,16,0,0,0,0,0,0,0,0,0,14,14,14,6,6,7,7,6,6,6,6,6,14,0,0,0,6,6,6,6,13,13,13,6,14,14,14,14,14,4,14,14,13,0,0,0,0,0,0,0,0,0,0,0,0,0,0,0,0,0,0,0,0,0,0,0,0,0,0,0,0,0,0,0,0,0,0,0,0,-8,-8,-8,0,0,0,-696,-12,-12545,-10354,-5143,0,0,0,-8,-8]} 1. g3 {[%emt 0:00:00]} d5 {[%emt 0:00:00]} 2. Nf3 {[%emt 0:00:06]} Nc6 {[%emt 0:00:03]} 3. d4 {[%emt 0:00:03]} g6 {[%emt 0:00:04]} 4. Bg2 {[%emt 0:01:23]} Bg7 {[%emt 0:00:03]} 5. O-O {[%emt 0:00:00]} Nf6 {[%emt 0:00:14]} 6. b3 {[%emt 0:00:53]} O-O {[%emt 0:00:10]} 7. Bb2 {[%emt 0:00:03] D02: 1 d4 d5 2 Nf3 sidelines, including 2...Nf6 3 g3 and 2...Nf6 3 Bf4.} Re8 {[%emt 0:00:16]} 8. Nbd2 {[%emt 0:00:26]} e5 {[%emt 0:00:13]} 9. Nxe5 {[%emt 0:01:12] White is slightly better.} Nxe5 {[%emt 0:00:03]} 10. dxe5 {[%emt 0:00:00]} Ng4 {[%emt 0:00:01]} 11. Nf3 {[%emt 0:02:34] [#]} Nxe5 $146 {[%emt 0:00:26]} ({Predecessor:} 11... c5 12. h3 Nxe5 13. Nxe5 Bxe5 14. Bxe5 Rxe5 15. f4 Re3 16. Rf3 Rxf3 17. Bxf3 Be6 {1-0 (56) Monte,E (1701)-Lima,A (1847) Fortaleza 2011}) 12. Nxe5 {[%emt 0:00:05]} Bxe5 {[%emt 0:00:02]} 13. Bxe5 {[%emt 0:00:02]} Rxe5 {[%emt 0:00:01]} 14. e4 {[%emt 0:00:34][%cal Re4d5] Against Bf5} d4 {[%emt 0:03:51]} 15. c3 {[%emt 0:00:09]} c5 {[%emt 0:00:09]} 16. cxd4 {[%emt 0:00:01]} cxd4 {[%emt 0:00:28]} 17. Qd2 {[%emt 0:00:03]} Rc5 {[%emt 0:00:17]} (17... Be6 $11 {was preferrable.}) 18. Rfd1 {[%emt 0:00:36]} Be6 {[%emt 0:01:20]} 19. Qxd4 {[%emt 0:00:56]} Qxd4 {[%emt 0:00:00]} 20. Rxd4 {[%emt 0:00:01]} Rac8 {[%emt 0:00:01]} 21. Bf1 {[%emt 0:00:27]} Ra5 {[%emt 0:00:44]} 22. a4 {[%emt 0:03:13]} Bxb3 {[%emt 0:00:16]} 23. Rb4 {[%emt 0:00:03][%csl LRb3,LRb7]} Bc2 {[%emt 0:01:19]} 24. Rxb7 {[%emt 0:00:09]} Bxe4 {[%emt 0:00:23]} 25. Rb5 {[%emt 0:00:01]} Rxb5 {[%emt 0:00:29]} 26. axb5 $11 {[%emt 0:00:02][%mdl 4096] Endgame KRB-KRB} Rc7 {[%emt 0:00:10]} 27. f4 {[%emt 0:00:02]} Bf5 {[%emt 0:00:52]} 28. Kf2 {[%emt 0:00:15]} Re7 {[%emt 0:00:42]} 29. Rc1 {[%emt 0:00:29]} Kg7 {[%emt 0:00:07]} 30. Rc6 {[%emt 0:00:03]} h5 {[%emt 0:00:35]} 31. Be2 {[%emt 0:00:06]} Be4 {[%emt 0:00:09]} 32. Rc5 {[%emt 0:00:03]} Kf6 {[%emt 0:00:22]} 33. h3 {[%emt 0:00:06]} Bb7 {[%emt 0:00:12]} 34. Rc3 {[%emt 0:00:16]} Bd5 {[%emt 0:00:41]} 35. Ra3 {[%emt 0:00:02]} Be6 {[%emt 0:00:38]} 36. Ra6 {[%emt 0:00:10]} Kg7 {[%emt 0:00:01]} 37. g4 {[%emt 0:00:11]} hxg4 {[%emt 0:00:00]} 38. hxg4 {[%emt 0:00:01]} Bc8 {[%emt 0:00:17]} 39. Rc6 {[%emt 0:00:14]} Bb7 {[%emt 0:00:06]} 40. Rd6 {[%emt 0:00:08]} Be4 {[%emt 0:00:01]} 41. Bc4 {[%emt 0:00:16]} Bb7 {[%emt 0:00:11]} 42. f5 {[%emt 0:00:35]} gxf5 {[%emt 0:00:03]} 43. gxf5 {[%emt 0:00:02] [#] f6+ is the strong threat.} Rc7 {[%emt 0:01:53]} 44. Bd3 {[%emt 0:00:04]} Bc8 {[%emt 0:01:07]} 45. Ke3 {[%emt 0:00:21]} f6 {[%emt 0:00:22]} 46. Rd8 {[%emt 0:01:07]} Kf7 {[%emt 0:01:35]} 47. Be4 {[%emt 0:01:07]} Ke7 {[%emt 0:00:12]} 48. Rh8 {[%emt 0:00:08]} Bd7 {[%emt 0:00:13]} 49. Rh7+ {[%emt 0:00:08]} Kd6 {[%emt 0:00:04]} 50. Rf7 {[%emt 0:00:09]} Bxb5 {[%emt 0:00:28]} 51. Rxf6+ {[%emt 0:00:02]} Kc5 {[%emt 0:00:06]} 52. Rf8 {[%emt 0:00:01]} a5 {[%emt 0:00:21]} 53. Ra8 {[%emt 0:00:03]} a4 {[%emt 0:00:04]} 54. Kf4 {[%emt 0:00:01]} Kb4 {[%emt 0:00:08]} 55. Rb8 {[%emt 0:00:15]} Kc5 {[%emt 0:00:25]} 56. Ra8 {[%emt 0:00:31]} Kb4 {[%emt 0:00:03]} 57. f6 {[%emt 0:00:02]} Bc4 {[%emt 0:00:06]} 58. Rb8+ {[%emt 0:00:07]} Kc3 {[%emt 0:00:11]} 59. Ra8 {[%emt 0:00:06]} Kb4 {[%emt 0:00:02]} 60. Ke5 {[%emt 0:00:02]} a3 {[%emt 0:00:05]} 61. Bb1 {[%emt 0:00:12] Inhibits a2.} Rc5+ {[%emt 0:00:09]} 62. Kd6 {[%emt 0:00:06]} Rd5+ {[%emt 0:00:02]} 63. Kc6 $2 {[%emt 0:00:01][%mdl 8192]} (63. Ke7 $11) 63... Ra5 $2 {[%emt 0:00:10]} (63... Rd1 $19 {Threatens to win with ...Bd5+.} 64. Rb8+ Kc3) 64. Rxa5 $4 {[%emt 0:00:06][%mdl 8192]} (64. Rb8+ $11 Kc3 65. Rc8) 64... Kxa5 $19 {[%emt 0:00:01]} 65. Kc5 {[%emt 0:00:00] [#]} a2 $2 {[%emt 0:00:04]} 66. Bxa2 $1 $11 {[%emt 0:00:01]} Bxa2 {[%emt 0:00:01]} 67. f7 {[%emt 0:00:01]} Bxf7 {[%emt 0:00:00] Weighted Error Value: White=0.03 (flawless) /Black=0.02 (flawless)} 1/2-1/2

[Event "MCCT Oslo Esports Cup 2022"]
[Site "Oslo"]
[Date "2022.04.20"]
[Round "5.4"]
[White "Giri, Anish"]
[Black "Mamedyarov, Shakhriyar"]
[Result "1/2-1/2"]
[ECO "C42"]
[WhiteElo "2773"]
[BlackElo "2771"]
[Annotator "TA"]
[PlyCount "108"]
[EventDate "2022.04.14"]
[EventType "tourn"]
[EventCountry "NOR"]
[SourceTitle "playchess.com"]
[Source "ChessBase"]
[SourceQuality "1"]
[TimeControl "900+10"]

{[%evp 15,108,27,25,11,14,17,32,28,35,32,27,22,39,18,21,20,15,21,13,25,17,19,15,24,10,0,0,0,6,13,7,6,36,6,50,8,65,6,32,32,69,69,69,68,65,55,69,69,69,69,69,38,47,51,76,62,76,72,128,145,134,144,143,84,102,101,113,57,77,8,8,0,78,85,91,96,128,-3,0,0,0,0,0,-8,-8,-8,-8,-8,-8,-8,-8,-8,0,-8,-8]} 1. e4 {[%emt 0:00:00]} e5 {[%emt 0:00:00]} 2. Nf3 {[%emt 0:00:01]} Nf6 {[%emt 0:00:01][%cal Bg8f6,Bf6e4,Be4d6][%mdl 32]} 3. Nxe5 {[%emt 0:00:01]} d6 {[%emt 0:00:01]} 4. Nf3 {[%emt 0:00:01]} Nxe4 {[%emt 0:00:02]} 5. d4 {[%emt 0:00:01]} d5 {[%emt 0:00:01]} 6. Bd3 {[%emt 0:00:01]} Be7 {[%emt 0:00:05]} 7. O-O {[%emt 0:00:04]} Bf5 {[%emt 0:00:03]} 8. Re1 {[%emt 0:00:16]} O-O {[%emt 0:00:05]} 9. Nbd2 $1 {[%emt 0:00:02][%cal Rd2e4][%mdl 4] outshines the older 9.c4. C42: Petroff Defence: 3 Nxe5 and unusual White 3rd moves.} Nd6 {[%emt 0:00:12]} 10. Nf1 {[%emt 0:00:01]} Nd7 {[%emt 0:00:51]} 11. Bf4 {[%emt 0:01:05] White is slightly better.} Bxd3 {[%emt 0:00:37]} 12. Qxd3 {[%emt 0:00:00]} Re8 {[%emt 0:00:09]} 13. Re2 {[%emt 0:01:30] [#]} Nf8 $146 {[%emt 0:03:43]} ({Predecessor:} 13... c6 14. Rae1 Nf6 15. Ng3 Bf8 16. Rxe8 Ndxe8 17. h4 Qa5 18. a3 Qb5 19. Qc3 Nd6 20. Bxd6 Bxd6 {½-½ (30) Vocaturo,D (2632)-Laurusas,T (2553) Terme Catez 2021}) 14. Qb3 {[%emt 0:02:18]} Ne6 {[%emt 0:01:19]} 15. Bxd6 {[%emt 0:00:09]} Qxd6 {[%emt 0:00:02]} 16. Ne3 {[%emt 0:00:22]} c6 {[%emt 0:01:53]} 17. Qxb7 {[%emt 0:01:17]} Rab8 {[%emt 0:00:01]} 18. Qa6 {[%emt 0:00:08]} Rxb2 {[%emt 0:00:07]} 19. Qxa7 {[%emt 0:00:12] Threatens to win with Nf5.} g6 {[%emt 0:00:42] Prevents Nf5.} 20. Qa6 {[%emt 0:00:50]} Bf6 {[%emt 0:02:03]} 21. c3 {[%emt 0:02:00]} Rxe2 {[%emt 0:00:21]} (21... Nc7 $5 22. Qd3 Qa3 $11) 22. Qxe2 {[%emt 0:00:02]} Qa3 $1 {[%emt 0:00:01]} 23. Qc2 {[%emt 0:00:23]} h5 {[%emt 0:00:41]} 24. h4 {[%emt 0:01:44]} Ra8 {[%emt 0:00:33]} (24... Rb8 $5 {[%cal Rb8b2]}) 25. g3 {[%emt 0:00:13]} Nc7 {[%emt 0:00:14]} (25... Kg7 $11) 26. c4 {[%emt 0:01:00]} (26. Rb1 $1 $14) 26... Ne6 {[%emt 0:00:25]} 27. Rd1 {[%emt 0:00:28]} ({But not} 27. cxd5 Nxd4 28. Nxd4 Bxd4 $11) 27... Kg7 {[%emt 0:01:03]} 28. cxd5 {[%emt 0:00:19]} cxd5 {[%emt 0:00:02]} 29. Qb3 {[%emt 0:00:42]} Ra5 {[%emt 0:01:10]} 30. Kg2 {[%emt 0:01:13]} Qxa2 {[%emt 0:01:10]} 31. Qxa2 {[%emt 0:00:03]} Rxa2 {[%emt 0:00:00]} 32. Nxd5 {[%emt 0:00:01]} Ra4 {[%emt 0:00:05][%cal Rf6d4]} 33. Nc3 {[%emt 0:00:50] Pair of Knights!} Rc4 {[%emt 0:00:19]} 34. Ne2 {[%emt 0:00:01]} Nc7 {[%emt 0:00:12]} 35. d5 {[%emt 0:00:01]} Nb5 {[%emt 0:01:00]} 36. d6 {[%emt 0:00:38] d7 is the strong threat.} Rc6 {[%emt 0:00:01]} ({Black should play} 36... Rc2) 37. d7 $16 {[%emt 0:00:00]} Rd6 {[%emt 0:00:01]} 38. Rxd6 {[%emt 0:01:09]} Nxd6 {[%emt 0:00:00][%mdl 4096] Endgame [#] KBN-KNN} 39. Ne5 {[%emt 0:00:31]} Nb7 {[%emt 0:00:14]} 40. Nc6 {[%emt 0:00:02] Black must now prevent Nf4.} Bd8 {[%emt 0:00:31]} 41. Nf4 {[%emt 0:00:25]} ({White should try} 41. Kf3 $16) 41... Kf6 $14 {[%emt 0:00:20]} 42. Kf3 {[%emt 0:00:09] &Bianco is more active.} (42. Kh3 $16) 42... Kf5 $11 {[%emt 0:00:06] Against g4+} 43. Ke2 {[%emt 0:00:30]} Bf6 {[%emt 0:01:26] [#]} (43... Bc7 $1 $11 {remains equal.}) 44. Ke3 $1 $16 {[%emt 0:01:01] Strongly threatening f3.} Bd8 {[%emt 0:00:27]} 45. Kd4 {[%emt 0:00:37]} Bb6+ {[%emt 0:00:03]} 46. Kd3 {[%emt 0:00:15]} ({White must play} 46. Kd5 $16 Bxf2 47. Ne2) 46... Bxf2 {[%emt 0:00:05] The position is equal.} 47. d8=Q {[%emt 0:00:10]} Nxd8 {[%emt 0:00:03]} 48. Nxd8 {[%emt 0:00:00]} Bxg3 {[%emt 0:00:05]} 49. Nd5 {[%emt 0:00:21]} Bxh4 {[%emt 0:00:07]} 50. Nxf7 {[%emt 0:00:02]} Ke6 {[%emt 0:00:06][%csl LRd5,LRf7]} 51. Nh8 {[%emt 0:00:06]} Kxd5 {[%emt 0:00:03]} 52. Nxg6 {[%emt 0:00:01]} Bg5 {[%emt 0:00:00]} 53. Ke2 $1 {[%emt 0:00:03]} h4 {[%emt 0:00:01]} 54. Nxh4 {[%emt 0:00:02]} Bxh4 {[%emt 0:00:00] Weighted Error Value: White=0.18 (very precise) /Black=0.11 (very precise)} 1/2-1/2